bitfinex/quotes_ETHUSD_20220109
["timestamp","ask_amount","ask_price","bid_price","bid_amount"]
[1641724296572,1.1158471,3094.6,3094.5,0.00795793]
[1641724296759,2.425395,3094.7,3094.5,0.00795793]
[1641724296959,6.46,3094.6,3094.5,0.00795793]
[1641724297161,2.05375626,3094.6,3094.5,0.00795793]
[1641724297562,2.86222626,3094.6,3094.4,0.00852635]
[1641724298363,3.67069626,3094.6,3094.4,0.00852635]
[1641724299164,3.67069626,3094.6,3094.3,0.00909477]
[1641724299463,0.80845,3094.5,3094.3,0.00909477]
[1641724299665,3.233767,3094.5,3094.3,0.00909477]
[1641724300816,3.233767,3094.5,3094.3,2.46820355]
[1641724301011,3.233767,3094.5,3094.3,2.45910878]
[1641724301213,3.233767,3094.5,3094.4,4.30852635]
[1641724301611,0.80841,3094.4,3094.2,2.45918654]
[1641724302111,0.80842,3094.3,3094.2,2.45918654]
[1641724302313,0.80842,3094.3,3094.2,2.39418654]
[1641724302511,0.80842,3094.3,3094.2,2.39532339]
[1641724302710,0.80842,3094.3,3094.2,0.00113685]
[1641724303110,0.80841,3094.4,3094.2,0.00113685]
[1641724303316,4.47913626,3094.6,3094.2,0.00113685]
[1641724303317,2.05375626,3094.6,3094.2,0.00113685]
[1641724303515,2.05375626,3094.6,3094.2,0.01359091]
[1641724303713,2.05375626,3094.6,3094.5,16.3]
[1641724304173,0.00119311,3094.6,3094.5,23.47676025]
[1641724304369,0.00119311,3094.6,3094.5,24.47676025]
[1641724304969,0.00119311,3094.6,3094.5,21.2]
[1641724305172,0.00119311,3094.6,3094.5,22.0299112]
[1641724305570,0.00119311,3094.6,3094.5,17.9]
[1641724305771,0.00119311,3094.6,3094.5,22.4296]
[1641724306170,0.00119311,3094.6,3094.5,26.55959302]
[1641724306771,0.00119311,3094.6,3094.5,23.25959302]
[1641724307372,0.00119311,3094.6,3094.5,42.16959302]
[1641724308813,0.00119311,3094.6,3094.5,42.97764302]
[1641724309010,0.02778036,3095.2,3094.6,38.51]
[1641724309209,0.02778036,3095.2,3094.7,4.36927705]
[1641724309408,0.02778036,3095.2,3094.8,0.3]
[1641724309409,0.00284212,3095.1,3094.8,0.3]
[1641724309808,0.00227369,3095.0,3094.8,0.3]
[1641724310007,0.00227369,3095.0,3094.8,3.57880035]
[1641724310308,0.02778036,3095.2,3094.9,21.5564455]
[1641724310707,0.00284212,3095.1,3095.0,21.93979705]
[1641724311113,0.00284212,3095.1,3095.0,22.23979705]
[1641724311668,0.00284212,3095.1,3095.0,18.10993584]
[1641724312262,0.80809,3095.5,3095.1,10.9]
[1641724312662,0.00170527,3095.4,3095.1,11.2]
[1641724313066,0.00113684,3095.3,3095.1,11.2]
[1641724313267,0.00113684,3095.3,3095.2,21.1906198]
[1641724313465,0.00284211,3095.6,3095.2,21.1906198]
[1641724313670,0.00113684,3095.3,3095.2,23.94386198]
[1641724313866,0.00227369,3095.5,3095.3,4.39403836]
[1641724314067,0.08078,3095.7,3095.3,4.39403836]
[1641724314268,0.08078,3095.7,3095.3,4.69403836]
[1641724314470,0.00284211,3095.6,3095.4,1.64077265]
[1641724314871,0.00227369,3095.5,3095.4,1.64077265]
[1641724315071,0.00227369,3095.5,3095.4,4.39393078]
[1641724317413,0.00227369,3095.5,3095.4,1.64077265]
[1641724317612,0.00227369,3095.5,3095.4,10.85317961]
[1641724318410,0.80801,3095.9,3095.5,10.05]
[1641724318411,0.04716907,3095.9,3095.5,10.05]
[1641724318814,0.00113685,3095.7,3095.5,10.05]
[1641724319064,0.00113685,3095.7,3095.6,12.65316924]
[1641724319472,0.00113685,3095.7,3095.6,2.75316924]
[1641724319664,0.00113685,3095.7,3095.6,8.85316924]
[1641724321670,0.00113685,3095.7,3095.6,15.35316924]
[1641724321869,0.00113685,3095.7,3095.6,8.85316924]
[1641724324317,0.00113685,3095.7,3095.6,2.75316924]
[1641724324520,0.00113685,3095.7,3095.6,9.70316924]
[1641724325519,0.00113685,3095.7,3095.6,2.75316924]
[1641724325920,0.8026623,3095.9,3095.6,2.75316924]
[1641724326318,0.8026623,3095.9,3095.5,1.64319653]
[1641724326561,0.8026623,3095.9,3095.7,2.75314687]
[1641724326562,0.80806,3095.8,3095.7,2.75314687]
[1641724326769,1.61622,3095.9,3095.7,2.75314687]
[1641724327063,9.0,3095.8,3095.6,2.75315021]
[1641724327362,8.59623122,3095.7,3095.6,2.75315021]
[1641724327662,4.885286,3095.9,3095.6,1.29815021]
[1641724328063,0.80822,3095.8,3095.6,1.29815021]
[1641724328865,19.91639,3095.7,3095.6,1.29815021]
[1641724329065,20.91639,3095.7,3095.6,5.021e-05]
[1641724329466,12.3,3095.6,3095.1,1.16787739]
[1641724329665,0.80831,3095.3,3095.1,1.16787739]
[1641724329965,1.6165917,3095.3,3095.2,0.00284212]
[1641724330814,1.6165917,3095.3,3094.9,0.00454739]
[1641724330815,0.80825,3095.1,3094.9,0.00454739]
[1641724331015,1.61649,3095.1,3094.9,0.00454739]
[1641724331217,1.61649,3095.1,3094.9,1.64830633]
[1641724331614,1.6164851,3095.4,3095.0,0.00397897]
[1641724332616,1.61638,3095.3,3095.0,0.00397897]
[1641724333616,1.61638,3095.3,3095.0,1.64803955]
[1641724333917,2.4245965,3095.3,3095.1,0.00341054]
[1641724334662,2.4245965,3095.3,3095.0,0.00397897]
[1641724336366,0.80819,3095.2,3095.0,0.00397897]
[1641724336665,0.80819,3095.2,3095.0,1.64834313]
[1641724337064,0.80819,3095.2,3095.1,0.00341054]
[1641724337666,0.80819,3095.2,3095.0,1.64436416]
[1641724337667,0.80819,3095.2,3095.0,1.5827747]
[1641724338111,1.61641,3095.2,3095.0,1.5827747]
[1641724338513,0.80831,3095.4,3095.0,1.5827747]
[1641724338715,0.80831,3095.4,3094.7,3.6753]
[1641724338716,0.80831,3095.4,3094.9,2.46789939]
[1641724339011,0.00113684,3095.3,3095.0,3.82534764]
[1641724339211,0.02778036,3096.2,3095.0,3.82534764]
[1641724339212,0.02778036,3096.2,3095.2,18.92286011]
[1641724339415,0.00284211,3095.6,3095.3,3.22534764]
[1641724339712,0.02778036,3096.2,3095.5,20.35781]
[1641724339910,0.02778036,3096.2,3095.6,1.2388]
[1641724340110,0.00454739,3096.1,3095.6,1.2388]
[1641724340311,0.00454739,3096.1,3095.8,2.46680867]
[1641724340511,0.00397897,3096.0,3095.8,3.06680867]
[1641724340715,0.00397897,3096.0,3095.8,3.87460867]
[1641724340912,0.00341054,3095.9,3095.8,3.87460867]
[1641724341112,0.02778036,3096.2,3095.9,15.2]
[1641724341313,0.08075,3096.6,3096.0,3.15194468]
[1641724341565,0.00113685,3096.1,3096.0,3.15194468]
[1641724341769,0.00113685,3096.1,3096.0,7.28087182]
[1641724341969,0.00113685,3096.1,3096.0,3.15194468]
[1641724342367,0.00113685,3096.1,3096.0,15.03087302]
[1641724342764,0.00113685,3096.1,3096.0,13.65455511]
[1641724343369,0.00113685,3096.1,3096.0,11.75455511]
[1641724343964,0.00113685,3096.1,3096.0,1.79862424]
[1641724344365,0.00113685,3096.1,3095.8,3.8725989]
[1641724346013,0.00113685,3096.1,3095.8,3.0647789]
[1641724346213,0.00113685,3096.1,3095.8,0.6]
[1641724346415,0.80786,3096.5,3095.8,2.46466314]
[1641724346615,0.80786,3096.5,3095.9,0.00113684]
[1641724346815,0.81013369,3096.5,3095.9,1.94489954]
[1641724347014,0.81013369,3096.5,3095.9,1.64489954]
[1641724347617,0.81013369,3096.5,3095.9,0.00113684]
[1641724347821,0.8079268,3096.2,3095.9,0.00113684]
[1641724348217,0.80792,3096.1,3095.9,0.00113684]
[1641724350866,10.75,3095.9,3095.4,1.97823697]
[1641724351168,1.6162,3095.8,3095.4,1.97823697]
[1641724351366,1.6162,3095.8,3095.5,0.00170527]
[1641724351367,6.4608,3095.7,3095.5,0.00170527]
[1641724351767,6.4608,3095.7,3095.3,0.00284212]
[1641724351967,6.4608,3095.7,3095.2,0.00341054]
[1641724352167,1.6164,3095.5,3095.2,0.00341054]
[1641724352369,9.6935835,3095.4,3095.2,0.00341054]
[1641724352818,0.61587162,3095.3,3095.2,0.00341054]
[1641724353013,7.07667162,3095.3,3095.2,0.00341054]
[1641724353213,7.269,3095.3,3095.1,0.00397896]
[1641724353415,8.07719,3095.3,3094.9,0.91477896]
[1641724353615,0.8081692,3095.1,3094.8,3.6218]
[1641724353815,0.8081692,3095.1,3094.6,0.08077]
[1641724354015,0.8081692,3095.1,3094.9,0.00113685]
[1641724354217,7.26893,3095.3,3094.6,0.01690685]
[1641724354516,0.00170527,3095.2,3094.7,0.00113685]
[1641724354921,0.00113685,3095.1,3094.7,3.28692749]
[1641724355323,0.00170527,3095.2,3094.7,3.28692749]
[1641724355721,0.00113685,3095.1,3094.7,3.28692749]
[1641724355921,0.00113685,3095.1,3094.8,3.28722662]
[1641724356120,6.4608,3095.3,3094.8,3.28722662]
[1641724356418,6.4608,3095.3,3094.9,0.00170527]
[1641724358365,6.4608,3095.3,3094.8,0.0022737]
[1641724358666,6.4608,3095.3,3094.8,3.28945936]
[1641724358667,4.80879855,3095.3,3094.8,3.28945936]
[1641724359068,4.80879855,3095.3,3094.9,0.00170527]
[1641724359667,4.80879855,3095.3,3095.0,2.46503114]
[1641724360319,4.80879855,3095.3,3095.1,2.46537798]
[1641724360514,4.80879855,3095.3,3095.0,2.46504486]
[1641724361316,4.69867973,3095.3,3095.0,2.46504486]
[1641724363819,4.69867973,3095.3,3095.1,2.46546245]
[1641724364066,4.69867973,3095.3,3095.1,2.46543416]
[1641724364668,4.69867973,3095.3,3095.1,2.76543416]
[1641724364867,4.69867973,3095.3,3095.1,23.59115266]
[1641724365068,4.69867973,3095.3,3095.1,21.1257185]
[1641724365470,4.69867973,3095.3,3095.2,20.55]
[1641724365768,4.69867973,3095.3,3095.2,27.43261837]
[1641724365970,4.69867973,3095.3,3095.2,49.62923129]
[1641724366368,4.69867973,3095.3,3095.2,46.34261837]
[1641724368715,4.69867973,3095.3,3095.2,49.62883644]
[1641724369415,4.69867973,3095.3,3095.2,30.71883644]
[1641724369615,4.69867973,3095.3,3095.2,10.16883644]
[1641724369817,4.69867973,3095.3,3095.2,9.34752699]
[1641724370719,4.69867973,3095.3,3095.2,2.46490862]
[1641724371117,4.69867973,3095.3,3095.2,11.91811396]
[1641724371318,0.29355119,3095.3,3095.2,9.45320534]
[1641724371960,0.29355119,3095.3,3095.2,11.0]
[1641724372160,0.29355119,3095.3,3095.2,6.7]
[1641724372361,0.29355119,3095.3,3095.2,7.0]
[1641724372561,0.29355119,3095.3,3095.2,9.75327833]
[1641724373061,0.29355119,3095.3,3095.2,22.60327833]
[1641724373460,0.29355119,3095.3,3095.2,22.90327833]
[1641724373867,0.29355119,3095.3,3095.2,27.03278269]
[1641724374262,0.29355119,3095.3,3095.2,45.94278269]
[1641724374862,0.29355119,3095.3,3095.2,14.18278269]
[1641724375063,0.29355119,3095.3,3095.2,17.46979565]
[1641724375536,0.29355119,3095.3,3095.2,10.05327833]
[1641724375942,0.29355119,3095.3,3095.2,19.75327833]
[1641724376540,0.29355119,3095.3,3095.2,23.882886]
[1641724377537,0.29355119,3095.3,3095.2,27.17069955]
[1641724378138,0.29355119,3095.3,3095.2,23.882886]
[1641724379064,0.29355119,3095.3,3095.2,42.792886]
[1641724379265,0.29355119,3095.3,3095.2,38.66327833]
[1641724379568,0.29355119,3095.3,3095.2,6.88277643]
[1641724380367,0.29355119,3095.3,3095.2,2.75327833]
[1641724380966,0.29355119,3095.3,3095.2,7.20327833]
[1641724381867,0.29355119,3095.3,3095.2,15.85327833]
[1641724383119,0.29355119,3095.3,3095.2,16.15327833]
[1641724383924,0.5,3096.5,3095.3,18.05]
[1641724384123,1.61582,3096.5,3095.3,18.85788]
[1641724384319,1.61582,3096.5,3095.3,18.05]
[1641724384320,0.00397896,3095.9,3095.3,18.05]
[1641724384721,0.00341054,3095.8,3095.3,18.05]
[1641724385220,0.00284212,3095.7,3095.6,17.29508257]
[1641724385421,0.00284212,3095.7,3095.6,18.40288002]
[1641724385620,0.00682108,3095.7,3095.6,18.40288002]
[1641724386773,0.00682108,3095.7,3095.6,22.53216808]
[1641724386974,0.00682108,3095.7,3095.6,18.40288002]
[1641724387374,0.00682108,3095.7,3095.6,20.87162171]
[1641724388377,0.00682108,3095.7,3095.6,18.40288002]
[1641724388578,0.00682108,3095.7,3095.6,20.87160551]
[1641724391621,0.00682108,3095.7,3095.6,25.00085358]
[1641724393317,0.00682108,3095.7,3095.6,9.35085358]
[1641724393718,0.00682108,3095.7,3095.6,4.39938569]
[1641724394367,0.00682108,3095.7,3095.3,4.39989622]
[1641724394570,0.81495108,3095.7,3095.3,4.39989622]
[1641724394768,0.00227369,3095.6,3095.3,4.39989622]
[1641724394969,1.61621,3095.5,3095.2,1.64671347]
[1641724395173,0.808109,3095.4,3095.2,1.64671347]
[1641724395371,0.00113685,3095.4,3095.2,1.64671347]
[1641724395870,0.00113685,3095.4,3095.3,17.29651578]
[1641724396069,0.00113685,3095.4,3095.3,18.40311742]
[1641724396471,2.423812,3096.2,3095.4,0.0022737]
[1641724396672,2.423812,3096.2,3095.3,2.75311742]
[1641724396870,0.00397896,3096.1,3095.3,6.04662587]
[1641724397072,0.00397896,3096.1,3095.7,1.64683449]
[1641724397372,0.00341054,3096.0,3095.7,1.64683449]
[1641724397574,0.81132054,3096.0,3095.7,1.64683449]
[1641724397826,0.00284211,3095.9,3095.7,1.64683449]
[1641724398026,0.00284211,3095.9,3095.6,1.64687285]
[1641724398226,0.00227369,3095.8,3095.6,1.64687285]
[1641724398628,0.00170527,3095.7,3095.6,1.64687285]
[1641724398828,0.80787,3096.1,3095.7,5.9]
[1641724399234,0.81014369,3096.1,3095.7,5.9]
[1641724400630,0.81014369,3096.1,3096.0,1.23581478]
[1641724401231,0.79460564,3096.1,3096.0,1.23581478]
[1641724402874,0.79460564,3096.1,3095.9,1.23599144]
[1641724403274,0.00170527,3096.0,3095.9,1.23599144]
[1641724408533,4.70524162,3096.0,3095.8,1.23631448]
[1641724408732,24.04507765,3095.9,3095.8,1.23631448]
[1641724408931,27.44174943,3095.9,3095.8,1.23631448]
[1641724409174,27.44174943,3095.9,3095.6,1.64687285]
[1641724409776,29.24418704,3095.9,3095.6,1.64687285]
[1641724409972,2.42461,3095.8,3095.6,1.64687285]
[1641724410173,11.9603,3095.7,3095.6,1.64687285]
[1641724410574,6.4603,3095.7,3095.6,0.19187285]
[1641724410975,6.4603,3095.7,3095.6,0.24547285]
[1641724411375,9.48856224,3095.7,3095.6,0.24547285]
[1641724411776,6.4603,3095.7,3095.6,0.18047285]
[1641724412176,6.4603,3095.7,3095.6,0.11547285]
[1641724413522,6.4103,3095.7,3095.6,0.11547285]
[1641724413722,6.3603,3095.7,3095.6,2.86887952]
[1641724413923,6.3603,3095.7,3095.6,0.11547285]
[1641724414725,6.3603,3095.7,3095.6,2.86886898]
[1641724415125,6.3603,3095.7,3095.6,0.11547285]
[1641724415325,6.3603,3095.7,3095.6,2.86890119]
[1641724420179,11.6103,3095.7,3095.6,1.41390119]
[1641724420430,6.3603,3095.7,3095.6,1.41390119]
[1641724421027,6.3603,3095.7,3095.6,1.34890119]
[1641724421226,6.3603,3095.7,3095.3,2.75311742]
[1641724421432,0.80818,3095.5,3095.3,2.75311742]
[1641724421628,6.3603,3095.4,3095.3,2.75311742]
[1641724422027,6.3603,3095.4,3095.3,2.75539112]
[1641724423028,7.9766424,3095.4,3095.3,2.75539112]
[1641724427373,6.3603,3095.4,3095.3,2.75539112]
[1641724429032,6.3603,3095.4,3095.3,1.30039112]
[1641724430031,6.3603,3095.4,3095.3,1.23539112]
[1641724435318,6.3603,3095.4,3095.3,2.88135259]
[1641724439073,4.70834556,3095.4,3095.3,2.88135259]
[1641724439270,4.70834556,3095.4,3095.3,1.23539112]
[1641724439668,4.70834556,3095.4,3095.3,2.88233595]
[1641724440069,4.70834556,3095.4,3095.3,1.23539112]
[1641724441171,4.70834556,3095.4,3095.3,5.63552795]
[1641724441368,4.70834556,3095.4,3095.3,2.8822371]
[1641724441670,4.70834556,3095.4,3095.3,5.6355087]
[1641724441869,4.70834556,3095.4,3095.3,2.8822371]
[1641724442068,4.70834556,3095.4,3095.3,5.63552224]
[1641724447069,7.88355227,3095.4,3095.3,5.63552224]
[1641724447271,4.70834556,3095.4,3095.3,3.98867626]
[1641724448173,4.70834556,3095.4,3095.3,3.92367626]
[1641724448572,4.70834556,3095.4,3095.3,5.15994782]
[1641724452018,4.70834556,3095.4,3095.3,5.48047412]
[1641724452420,4.70834556,3095.4,3095.3,4.24420256]
[1641724456067,4.70834556,3095.4,3095.3,14.34420256]
[1641724456268,4.70834556,3095.4,3095.3,12.88920256]
[1641724456671,4.70834556,3095.4,3095.3,2.78920256]
[1641724457069,4.70834556,3095.4,3095.3,10.08920256]
[1641724458626,4.70834556,3095.4,3095.3,2.78920256]
[1641724461887,4.70834556,3095.4,3095.3,2.76920256]
[1641724463082,4.70834556,3095.4,3095.3,4.00597829]
[1641724463683,7.71103362,3095.4,3095.3,4.00597829]
[1641724463883,4.70834556,3095.4,3095.3,4.00597829]
[1641724464285,6.32476186,3095.4,3095.3,2.55097829]
[1641724464883,4.70834556,3095.4,3095.3,2.55097829]
[1641724465728,4.70834556,3095.4,3095.3,2.48597829]
[1641724474823,4.70834556,3095.4,3095.3,1.03097829]
[1641724475622,4.70834556,3095.4,3095.3,0.96597829]
[1641724479380,3.05624514,3095.4,3095.3,0.96597829]
[1641724480331,3.05624514,3095.4,3095.1,1.64901799]
[1641724480332,3.05624514,3095.4,3095.2,1.64900878]
[1641724480530,3.86431514,3095.4,3095.2,1.64900878]
[1641724481132,4.67239514,3095.4,3095.2,1.64900878]
[1641724481335,3.05624514,3095.4,3095.2,1.64900878]
[1641724484873,3.86431514,3095.4,3095.2,1.64900878]
[1641724485072,4.67240514,3095.4,3095.2,1.64900878]
[1641724485972,3.86431514,3095.4,3095.2,1.64900878]
[1641724486173,3.86431514,3095.4,3095.2,1.58400878]
[1641724486576,3.05624514,3095.4,3095.2,1.58400878]
[1641724492174,3.05624514,3095.4,3095.1,2.47430138]
[1641724492574,3.05624514,3095.4,3095.2,0.00284212]
[1641724494174,3.05624514,3095.4,3095.1,0.81138054]
[1641724494375,3.05624514,3095.4,3095.1,1.11138054]
[1641724494775,3.05624514,3095.4,3095.1,3.5857872]
[1641724495076,3.00930149,3095.4,3095.1,3.5857872]
[1641724495323,3.00930149,3095.4,3095.3,1.64955757]
[1641724495723,3.00930149,3095.4,3095.3,1.65183127]
[1641724496524,3.00930149,3095.4,3095.3,1.58683127]
[1641724496725,3.00930149,3095.4,3095.3,4.34008651]
[1641724496925,3.00930149,3095.4,3095.3,1.58683127]
[1641724498929,3.00930149,3095.4,3095.3,3.18683127]
[1641724499174,0.02778036,3096.0,3095.5,0.80782]
[1641724499373,0.02778036,3096.0,3095.6,1.1354]
[1641724499572,0.02778036,3096.0,3095.6,1.7354]
[1641724499977,0.02778036,3096.0,3095.7,5.54831494]
[1641724500377,0.02778036,3096.0,3095.8,2.75280749]
[1641724500574,0.02778036,3096.0,3095.8,3.05280749]
[1641724501175,0.02778036,3096.0,3095.9,2.75278821]
[1641724501373,0.08075,3096.1,3095.9,2.75278821]
[1641724501574,0.00170527,3096.0,3095.9,2.75278821]
[1641724502575,0.00170527,3096.0,3095.9,11.00278821]
[1641724503624,0.00170527,3096.0,3095.9,15.25278821]
[1641724505426,0.00170527,3096.0,3095.9,11.00278821]
[1641724505628,0.00170527,3096.0,3095.9,12.6497941]
[1641724507481,0.00170527,3096.0,3095.9,17.9997941]
[1641724507880,0.00170527,3096.0,3095.9,12.6497941]
[1641724509482,0.00170527,3096.0,3095.9,4.3997941]
[1641724510529,0.00170527,3096.0,3095.9,8.9997941]
[1641724511529,0.00170527,3096.0,3095.9,13.1997941]
[1641724512129,0.00170527,3096.0,3095.9,14.1997941]
[1641724512331,0.00170527,3096.0,3095.9,31.76278821]
[1641724512530,0.02778036,3096.6,3096.0,38.46]
[1641724512730,0.02778036,3096.6,3096.2,0.80758]
[1641724512930,0.00284211,3096.5,3096.3,2.46647276]
[1641724513130,0.00284211,3096.5,3096.3,11.53857276]
[1641724513330,0.00227369,3096.4,3096.3,12.34616276]
[1641724513532,0.00227369,3096.4,3096.3,24.79854187]
[1641724513835,0.01023162,3096.4,3096.3,22.33206911]
[1641724514087,0.01023162,3096.4,3096.3,26.46073075]
[1641724516077,0.01023162,3096.4,3096.3,16.76073075]
[1641724516380,0.01023162,3096.4,3096.3,15.95314075]
[1641724516578,0.01023162,3096.4,3096.3,10.82447911]
[1641724517078,0.01023162,3096.4,3096.3,14.75429844]
[1641724517478,0.01023162,3096.4,3096.3,21.35429844]
[1641724517678,0.01023162,3096.4,3096.3,25.48297322]
[1641724517925,0.01023162,3096.4,3096.3,14.95315389]
[1641724518325,0.01023162,3096.4,3096.3,10.82447911]
[1641724519326,0.01023162,3096.4,3096.3,28.01368188]
[1641724519528,53.76053574,3097.2,3096.4,9.7]
[1641724519828,53.76053574,3097.2,3096.5,3.99100278]
[1641724520227,53.76053574,3097.2,3096.6,0.00682108]
[1641724521028,54.56044877,3097.2,3096.6,0.00682108]
[1641724521229,0.80771,3097.1,3096.6,0.00682108]
[1641724521677,0.8076892,3097.0,3096.7,2.75249232]
[1641724521877,0.8076892,3097.0,3096.7,2.74249232]
[1641724522078,0.8076892,3097.0,3096.8,0.00568424]
[1641724522477,0.8076892,3097.0,3096.6,0.00682108]
[1641724522677,0.8076892,3097.0,3096.6,1.2376828]
[1641724523077,0.8076892,3097.0,3096.3,7.7721]
[1641724523279,0.80885965,3096.9,3096.3,7.7721]
[1641724523480,0.80885965,3096.9,3096.4,0.00170527]
[1641724523678,0.8077228,3096.9,3096.4,0.00170527]
[1641724524779,0.00227369,3097.1,3096.3,8.0721]
[1641724524780,1.61765659,3097.1,3096.3,8.00880527]
[1641724524979,0.00227369,3096.8,3096.3,8.00880527]
[1641724525323,0.00170527,3096.7,3096.3,8.00880527]
[1641724525723,0.00113685,3096.6,3096.3,8.00880527]
[1641724526123,0.81165206,3097.1,3096.3,8.00880527]
[1641724526531,0.00341054,3097.0,3096.3,8.00880527]
[1641724526927,0.00284212,3096.9,3096.3,8.00880527]
[1641724527328,0.00227369,3096.8,3096.3,8.00880527]
[1641724527729,0.00170527,3096.7,3096.3,8.00880527]
[1641724528129,0.00113685,3096.6,3096.3,8.00880527]
[1641724528531,0.8077294,3096.9,3096.3,8.00880527]
[1641724528931,0.00227369,3096.8,3096.3,8.00880527]
[1641724529385,0.00170527,3096.7,3096.3,8.00880527]
[1641724529778,0.8077294,3096.9,3096.3,8.00880527]
[1641724529779,0.00113685,3096.6,3096.3,8.00880527]
[1641724530182,0.00227369,3096.8,3096.4,1.64098967]
[1641724530581,0.00170527,3096.7,3096.4,1.64113985]
[1641724530979,0.00113685,3096.6,3096.4,1.64113985]
[1641724531380,0.00227369,3096.8,3096.4,1.64113985]
[1641724531781,0.00170527,3096.7,3096.4,1.64113985]
[1641724531984,0.00170527,3096.7,3096.4,2.44881985]
[1641724532181,0.00113685,3096.6,3096.4,2.44881985]
[1641724532682,1.6154001,3097.1,3096.4,2.44881985]
[1641724532683,0.00341054,3097.0,3096.4,1.64113985]
[1641724532930,0.30585521,3097.1,3096.4,1.64113985]
[1641724533128,53.75273877,3097.2,3096.7,1.23122977]
[1641724533129,53.32152992,3097.2,3096.7,1.23122977]
[1641724533427,1.6152729,3097.5,3096.8,0.00113685]
[1641724533826,0.00113685,3097.2,3096.8,0.00113685]
[1641724535426,0.00113685,3097.2,3096.8,1.2326141]
[1641724535929,0.00113685,3097.2,3096.8,2.0401341]
[1641724538180,0.00113685,3097.2,3096.8,2.3401341]
[1641724538579,0.00113685,3097.2,3096.9,1.23223552]
[1641724539079,0.00113685,3097.2,3096.8,2.34089686]
[1641724540083,0.00113685,3097.2,3096.9,1.23224046]
[1641724540336,0.00113685,3097.2,3096.9,1.53224046]
[1641724541939,0.00113685,3097.2,3097.0,2.75224667]
[1641724542140,0.80874685,3097.2,3097.0,2.75224667]
[1641724542940,0.75874685,3097.2,3097.0,2.75224667]
[1641724543340,1.56635685,3097.2,3097.0,3.98661812]
[1641724543545,0.75874685,3097.2,3097.0,3.98661812]
[1641724544576,0.75874685,3097.2,3097.1,1.23424247]
[1641724544775,0.75874685,3097.2,3097.1,3.98643521]
[1641724544977,0.75874685,3097.2,3097.1,1.23424247]
[1641724545175,0.75874685,3097.2,3097.1,3.98643136]
[1641724545379,0.00113685,3097.2,3097.1,3.98643136]
[1641724545581,0.00113685,3097.2,3097.1,1.23424247]
[1641724546877,22.27811518,3097.2,3097.1,0.97854247]
[1641724547077,22.29018535,3097.2,3097.1,2.75221109]
[1641724547275,26.77080702,3097.2,3097.1,2.75221109]
[1641724548132,26.77080702,3097.2,3096.8,0.00113685]
[1641724548339,0.80782,3097.0,3096.8,0.00113685]
[1641724548532,13.8076,3096.9,3096.8,0.00113685]
[1641724549032,19.8076,3096.9,3096.8,0.00113685]
[1641724549435,6.4576,3096.9,3096.8,0.00113685]
[1641724550036,13.3076,3096.9,3096.8,0.00113685]
[1641724550440,13.3076,3096.9,3096.6,0.00227369]
[1641724550633,13.3076,3096.9,3096.5,0.1942536]
[1641724550634,10.40781,3096.8,3096.5,0.1942536]
[1641724550834,7.2653852,3096.7,3096.5,0.1942536]
[1641724551235,7.2653852,3096.7,3096.2,2.47046986]
[1641724551440,7.2653852,3096.7,3096.1,2.47055727]
[1641724551441,8.8814609,3096.7,3096.1,2.47055727]
[1641724551707,0.80798,3096.4,3096.1,2.40726254]
[1641724551893,0.8080295,3096.2,3095.9,2.47072585]
[1641724552097,6.4576,3096.1,3095.9,2.40572585]
[1641724552293,6.4576,3096.1,3096.0,0.00170527]
[1641724552699,6.4576,3096.1,3095.8,0.00284212]
[1641724552893,0.8079472,3096.0,3095.8,0.00284212]
[1641724553494,0.7079472,3096.0,3095.8,0.00284212]
[1641724553894,1.5158972,3096.0,3095.8,0.00284212]
[1641724554695,2.3238372,3096.0,3095.8,0.00284212]
[1641724558433,0.7079472,3096.0,3095.8,0.00284212]
[1641724558632,8.0735327,3096.1,3095.8,0.00284212]
[1641724558838,6.4576,3096.1,3095.8,0.00284212]
[1641724559077,6.4576,3096.1,3095.8,3.29588758]
[1641724559476,6.4576,3096.1,3095.9,0.0022737]
[1641724559677,4.73851549,3096.1,3095.9,3.29505281]
[1641724561380,4.73851549,3096.1,3095.9,3.59505281]
[1641724561777,4.73851549,3096.1,3095.9,3.89505281]
[1641724563725,4.73851549,3096.1,3096.0,7.30259201]
[1641724563925,4.73851549,3096.1,3096.0,3.05259201]
[1641724564825,4.73851549,3096.1,3096.0,15.00259201]
[1641724565226,4.73851549,3096.1,3096.0,3.05259201]
[1641724565627,4.73851549,3096.1,3096.0,6.34461364]
[1641724567780,0.00170527,3096.6,3096.2,30.65334521]
[1641724567984,0.00170527,3096.6,3096.3,1.1891]
[1641724568175,1.6151703,3097.6,3096.4,22.84168486]
[1641724568176,0.00113684,3096.5,3096.4,22.84168486]
[1641724568376,0.00113684,3096.5,3096.4,23.14168486]
[1641724568578,0.00113684,3096.5,3096.4,24.14168486]
[1641724568777,0.00113684,3096.5,3096.4,28.53767528]
[1641724568977,0.00113684,3096.5,3096.4,30.45281528]
[1641724569577,0.00113684,3096.5,3096.4,49.36281528]
[1641724569777,0.02778036,3097.1,3096.4,49.36281528]
[1641724569979,0.02778036,3097.1,3096.6,1.61505]
[1641724570178,0.02778036,3097.1,3096.7,21.54223484]
[1641724570179,0.00170527,3096.8,3096.7,21.54223484]
[1641724570429,0.00170527,3096.8,3096.7,6.34223484]
[1641724570634,0.07328287,3096.9,3096.8,14.5]
[1641724571027,0.07328287,3096.9,3096.8,18.25191955]
[1641724572528,0.80749,3097.8,3096.9,17.27328287]
[1641724572730,0.8074874,3097.5,3096.9,21.17908287]
[1641724573028,0.8074874,3097.5,3097.4,1.23332742]
[1641724573429,0.81146637,3097.5,3097.4,1.23332742]
[1641724574677,0.81146637,3097.5,3097.2,1.644095]
[1641724575077,0.00341054,3097.4,3097.2,1.644095]
[1641724575278,0.00341054,3097.4,3097.2,4.39596055]
[1641724575480,0.00284212,3097.3,3097.2,4.39596055]
[1641724575678,0.00284212,3097.3,3097.2,13.84596055]
[1641724575882,0.00341054,3097.3,3097.2,13.84596055]
[1641724576079,0.00341054,3097.3,3097.2,4.39596055]
[1641724577083,0.00341054,3097.3,3097.2,2.75186555]
[1641724577283,0.00341054,3097.3,3097.2,2.89033219]
[1641724577482,0.00341054,3097.3,3097.2,5.64220293]
[1641724577683,0.00341054,3097.3,3097.2,16.34220293]
[1641724578629,0.00341054,3097.3,3097.2,14.69887074]
[1641724578828,0.81088354,3097.3,3097.2,14.69887074]
[1641724579326,0.81088354,3097.3,3097.2,13.75187074]
[1641724579528,0.00341054,3097.3,3097.2,13.75187074]
[1641724579726,0.00341054,3097.3,3097.2,19.60187074]
[1641724579930,0.00341054,3097.3,3097.2,13.75187074]
[1641724583078,0.00341054,3097.3,3097.2,3.05187074]
[1641724584081,0.00341054,3097.3,3097.2,4.28383698]
[1641724584780,0.00341054,3097.3,3097.2,3.98383698]
[1641724585185,0.00341054,3097.3,3097.2,3.93383698]
[1641724585644,0.00341054,3097.3,3097.2,1.23196624]
[1641724586250,3.28584038,3097.3,3097.2,1.23196624]